fUSD/lending_fUSD_20251024
["ID","MTS","AMOUNT","RATE_DAILY","PERIOD"]
[392229881,1761270644026,-1058.0618847,0.00041397,2]
[392229882,1761270644041,-397.4867,0.00041397,2]
[392229883,1761270644052,-179.53745824,0.00041397,2]
[392229884,1761270644061,-234.12935081,0.00042248,15]
[392229885,1761270644070,-168.71318095,0.0004369,120]
[392229886,1761270644132,-4831.28681905,0.0004369,120]
[392229887,1761270644143,-18354.40019676,0.00043815,3]
[392229888,1761270644154,-8533.13409895,0.00043825,3]
[392229890,1761270646272,-449.94552228,0.00036668,15]
[392229891,1761270646282,-151.0,0.000438,120]
[392229892,1761270646291,-151.0,0.000438,120]
[392229893,1761270646302,-151.0,0.00043825,120]
[392229894,1761270646312,-151.0,0.00043825,120]
[392229895,1761270646322,-40.59479886,0.00043825,3]
[392229896,1761270646483,-444.58999998,0.00043825,3]
[392230075,1761271110081,289.71735063,0.00036669,30]
[392230077,1761271145535,-235.10927039,0.0003,2]
[392230080,1761271248738,645.0,0.00036688,120]
[392230081,1761271250007,-67.19872384,0.0003,2]
[392230082,1761271250030,-132.80127616,0.0003,2]
[392230083,1761271252470,-200.0,0.0003,2]
[392230086,1761271279903,25474.0,0.00036688,30]
[392230088,1761271460088,-167.19872384,0.0003,2]
[392230089,1761271460109,-216.08775387,0.0003,2]
[392230090,1761271463462,-256.55285745,0.0003,2]
[392230091,1761271466769,-27.35938868,0.0003,2]
[392230092,1761271466791,-157.01798901,0.00030187,120]
[392230093,1761271519928,-37.98201099,0.00030187,120]
[392230094,1761271519951,-157.01798901,0.00030891,2]
[392230104,1761271635172,-3.90417528,0.00030891,2]
[392230105,1761271635201,-263.64839054,0.00031594,120]
[392230106,1761271635228,-81.45002419,0.00033,120]
[392230166,1761271729817,-227.46606587,0.0002,2]
[392230167,1761271733115,-172.04064478,0.0002,2]
[392230168,1761271736548,-285.90082933,0.0002,2]
[392230169,1761271739136,-394.9600415,0.0002,2]
[392230170,1761271739425,223.53,0.00036689,120]
[392230171,1761271739646,447.06,0.00036689,120]
[392230172,1761271739884,670.59,0.00036689,120]
[392230173,1761271740117,894.12,0.00036689,120]
[392230174,1761271740361,1117.65,0.00036689,120]
[392230175,1761271740606,1341.18,0.00036689,120]
[392230176,1761271740831,1564.71,0.00036689,120]
[392230177,1761271741087,1788.24,0.00036689,120]
[392230178,1761271741309,2011.77,0.00036689,120]
[392230179,1761271741546,2235.3,0.00036689,120]
[392230180,1761271741788,2458.83,0.00036689,120]
[392230181,1761271742052,2682.36,0.00036689,120]
[392230182,1761271742146,-167.00630155,0.0002,2]
[392230183,1761271742286,2905.89,0.00036689,120]
[392230184,1761271742838,1117.70458284,0.00036689,120]
[392230186,1761271752445,155.0,0.00036689,30]
[392230187,1761271760122,-392.55579329,0.0002,2]
[392230188,1761271761963,-349.30714366,0.0002,2]
[392230189,1761271765441,-225.15136936,0.0002,2]
[392230190,1761271769167,-157.4902851,0.0002,2]
[392230192,1761271771079,-524.20388475,0.0002,2]
[392230193,1761271771375,-213.33896432,0.0002,2]
[392230197,1761271774003,-265.34762739,0.0002,2]
[392230199,1761271789904,-242.90718025,0.0002,2]
[392230200,1761271792352,-191.14,0.0002,2]
[392230202,1761271795008,-256.22174236,0.0002,2]
[392230204,1761271797125,-262.36529062,0.0002,2]
[392230208,1761271831910,-272.38477963,0.00018283,2]
[392230231,1761271832281,-7.07522037,0.00018283,2]
[392230232,1761271832291,-279.46,0.00019246,2]
[392230233,1761271832300,-300.0,0.00019999,2]
[392230234,1761271832309,-300.0,0.00019999,2]
[392230235,1761271832319,-1200.0,0.00019999,2]
[392230236,1761271832338,-35672.59683587,0.0002,2]
[392230237,1761271832349,-279.46,0.00020208,2]
[392230238,1761271832359,-279.46,0.0002117,2]
[392230239,1761271832368,-420.0,0.00021777,2]
[392230240,1761271832377,-279.46,0.00022132,2]
[392230241,1761271832386,-279.46,0.00023095,2]
[392230242,1761271832395,-587.0,0.00023712,2]
[392230243,1761271832403,-279.46,0.00024057,2]
[392230244,1761271832413,-279.46,0.00025019,2]
[392230245,1761271832421,-823.0,0.0002582,2]
[392230246,1761271832431,-279.46,0.00025982,2]
[392230247,1761271832441,-279.46,0.00026944,2]
[392230248,1761271832451,-279.46,0.00027906,2]
[392230249,1761271832461,-303.0,0.00028115,2]
[392230250,1761271832471,-279.46,0.00028868,2]
[392230251,1761271832481,-10000.0,0.00029,30]
[392230252,1761271832490,-279.46,0.00029831,2]
[392230253,1761271832500,-279.46,0.00030793,2]
[392230254,1761271832510,-279.46,0.00031755,2]
[392230255,1761271832520,-3512.5,0.00032,30]
[392230256,1761271832530,-279.46,0.00032718,2]
[392230257,1761271832541,-306.0,0.00033205,2]
[392230258,1761271832551,-2500.0,0.00033206,120]
[392230259,1761271832560,-250.0,0.00033206,2]
[392230260,1761271832569,-279.46,0.0003368,2]
[392230261,1761271832578,-160.55,0.00033949,60]
[392230262,1761271832587,-152.36,0.00033949,60]
[392230264,1761271832597,-195.0,0.0003398,120]
[392230266,1761271832606,-206.73,0.00034,15]
[392230267,1761271832615,-160.56691728,0.00034049,60]
[392230269,1761271832624,-500.0,0.00034479,7]
[392230271,1761271832633,-500.0,0.00034479,7]
[392230273,1761271832644,-457.04183717,0.00034479,2]
[392230275,1761271832652,-500.0,0.00034479,7]
[392230277,1761271832662,-500.0,0.00034479,7]
[392230279,1761271832671,-500.0,0.00034479,7]
[392230281,1761271832680,-500.0,0.00034479,7]
[392230284,1761271832694,-500.0,0.00034479,7]
[392230286,1761271832703,-500.0,0.00034479,7]
[392230288,1761271832712,-550.99940626,0.00034479,7]
[392230290,1761271832722,-500.0,0.00034479,7]
[392230292,1761271832731,-500.0,0.00034479,7]
[392230294,1761271832741,-1268.1928397,0.00034501,2]
[392230296,1761271832750,-163.99,0.00034621,2]
[392230298,1761271832759,-279.46,0.00034642,2]
[392230300,1761271832768,-168.0,0.00034646,2]
[392230301,1761271832777,-168.0,0.00035292,2]
[392230302,1761271832786,-279.46,0.00035604,2]
[392230303,1761271832796,-168.0,0.00035826,2]
[392230304,1761271832806,-5000.0,0.00036,30]
[392230305,1761271832815,-168.0,0.00036143,2]
[392230306,1761271832825,-168.0,0.00036293,2]
[392230307,1761271832834,-168.0,0.00036308,2]
[392230308,1761271832843,-476.23156132,0.00036416,2]
[392230309,1761271832853,-168.0,0.00036475,2]
[392230310,1761271832862,-279.46,0.00036567,2]
[392230311,1761271832872,-2523.0,0.000366,3]
[392230312,1761271832882,-584.6957307,0.00036689,2]
[392230313,1761271832891,-168.0,0.00036886,2]
[392230314,1761271832900,-168.0,0.00036967,2]
[392230315,1761271832910,-168.0,0.00036974,2]
[392230317,1761271832920,-279.65373846,0.00037038,2]
[392230319,1761271832929,-168.0,0.00037043,2]
[392230321,1761271832939,-1852.42,0.00037061,2]
[392230322,1761271832948,-2751.0,0.00037114,120]
[392230324,1761271832958,-180.77331105,0.000372,120]
[392230326,1761271832967,-5514.0,0.000373,5]
[392230327,1761271832977,-2472.4,0.00037438,2]
[392230329,1761271832985,-168.0,0.00037544,2]
[392230330,1761271832995,-177.3393677,0.00037544,48]
[392230332,1761271833004,-488.476,0.00037544,48]
[392230333,1761271833013,-168.0,0.00037615,2]
[392230334,1761271833023,-168.0,0.00037833,2]
[392230335,1761271833032,-1500.0,0.00037839,120]
[392230336,1761271833042,-168.0,0.00037957,2]
[392230337,1761271833057,-282.75751744,0.00038541,2]
[392230338,1761271833066,-234.4074,0.00038888,30]
[392230339,1761271833076,-9721.76318429,0.00039923,2]
[392230340,1761271833086,-380.97,0.0004028,30]
[392230341,1761271833095,-512.55773991,0.0004035,30]
[392230342,1761271833105,-1456.946,0.00040622,2]
[392230343,1761271833114,-818.0,0.00040622,2]
[392230344,1761271833124,-1269.0,0.00040622,2]
[392230345,1761271833134,-2550.0,0.00040711,2]
[392230346,1761271833144,-3487.0,0.00040711,2]
[392230347,1761271833154,-500.0,0.00040817,30]
[392230348,1761271833164,-2525.39,0.0004085,2]
[392230349,1761271833174,-1000.0,0.00040905,2]
[392230350,1761271833183,-396.40397289,0.00041095,120]
[392230351,1761271833194,-518.06867123,0.00041095,120]
[392230352,1761271833203,-504.55917563,0.00041095,120]
[392230353,1761271833214,-514.84,0.00041095,30]
[392230354,1761271833224,-500.0,0.00041095,30]
[392230355,1761271833234,-549.08,0.00041095,30]
[392230356,1761271833246,-500.0,0.00041095,30]
[392230357,1761271833261,-500.0,0.00041095,30]
[392230358,1761271833271,-500.0,0.00041095,30]
[392230359,1761271833281,-618.1,0.00041095,30]
[392230360,1761271833291,-1072.81,0.00041095,30]
[392230361,1761271833300,-500.0,0.00041095,30]
[392230362,1761271833309,-500.0,0.00041095,30]
[392230363,1761271833318,-500.0,0.00041095,30]
[392230364,1761271833327,-500.0,0.00041095,30]
[392230365,1761271833336,-300.0,0.00041095,30]
[392230366,1761271833346,-1099.63,0.00041095,30]
[392230367,1761271833355,-500.82666446,0.00041095,30]
[392230368,1761271833364,-561.56,0.00041095,30]
[392230369,1761271833374,-500.0,0.00041095,30]
[392230370,1761271833383,-500.0,0.00041095,30]
[392230371,1761271833392,-500.0,0.00041095,30]
[392230372,1761271833402,-500.0,0.00041095,30]
[392230373,1761271833415,-500.0,0.00041095,30]
[392230374,1761271833425,-500.0,0.00041095,30]
[392230375,1761271833435,-653.3,0.00041095,30]
[392230376,1761271833445,-500.0,0.00041095,30]
[392230377,1761271833454,-500.0,0.00041095,30]
[392230378,1761271833463,-500.0,0.00041095,30]
[392230379,1761271833474,-500.0,0.00041095,30]
[392230380,1761271833483,-622.84,0.00041095,30]
[392230381,1761271833492,-500.0,0.00041095,30]
[392230382,1761271833502,-500.0,0.00041095,30]
[392230383,1761271833512,-500.0,0.00041095,30]
[392230384,1761271833522,-500.0,0.00041095,30]
[392230385,1761271833531,-500.0,0.00041095,30]
[392230386,1761271833540,-1019.47,0.00041095,30]
[392230387,1761271833550,-500.0,0.00041095,30]
[392230388,1761271833559,-500.0,0.00041095,30]
[392230389,1761271833569,-500.0,0.00041095,30]
[392230390,1761271833579,-500.0,0.00041095,30]
[392230391,1761271833588,-1154.68,0.00041095,30]
[392230392,1761271833597,-1155.43,0.00041095,30]
[392230393,1761271833611,-500.0,0.00041095,30]
[392230394,1761271833621,-496.57043812,0.00041095,30]
[392230395,1761271833631,-500.0,0.00041095,30]
[392230396,1761271833640,-742.27,0.00041095,30]
[392230397,1761271833650,-881.73,0.00041095,30]
[392230398,1761271833659,-500.0,0.00041095,30]
[392230399,1761271833669,-500.0,0.00041095,30]
[392230400,1761271833679,-500.0,0.00041095,30]
[392230401,1761271833688,-560.93,0.00041095,30]
[392230402,1761271833698,-500.0,0.00041095,30]
[392230403,1761271833707,-588.28,0.00041095,30]
[392230404,1761271833716,-500.0,0.00041095,30]
[392230405,1761271833726,-500.0,0.00041095,30]
[392230406,1761271833735,-500.0,0.00041095,30]
[392230407,1761271833745,-500.0,0.00041095,30]
[392230408,1761271833754,-500.0,0.00041095,30]
[392230409,1761271833764,-500.0,0.00041095,30]
[392230410,1761271833775,-500.0,0.00041095,30]
[392230411,1761271833785,-500.0,0.00041095,30]
[392230412,1761271833794,-500.0,0.00041095,30]
[392230413,1761271833804,-500.0,0.00041095,30]
[392230414,1761271833813,-500.0,0.00041095,30]
[392230415,1761271833823,-516.65172743,0.00041095,30]
[392230416,1761271833832,-546.35160476,0.00041095,30]
[392230417,1761271833842,-500.0,0.00041095,30]
[392230418,1761271833851,-500.0,0.00041095,30]
[392230419,1761271833862,-1170.11,0.00041095,30]
[392230420,1761271833871,-500.0,0.00041095,30]
[392230421,1761271833881,-500.0,0.00041095,30]
[392230422,1761271833890,-500.0,0.00041095,30]
[392230423,1761271833899,-500.0,0.00041095,30]
[392230424,1761271833909,-500.0,0.00041095,30]
[392230425,1761271833919,-500.0,0.00041095,30]
[392230426,1761271833928,-500.0,0.00041095,30]
[392230427,1761271833938,-500.0,0.00041095,30]
[392230428,1761271833951,-517.52486235,0.00041095,30]
[392230429,1761271833960,-500.0,0.00041095,30]
[392230430,1761271833970,-500.0,0.00041095,30]
[392230431,1761271833983,-500.0,0.00041095,30]
[392230432,1761271833993,-500.0,0.00041095,30]
[392230433,1761271834003,-500.0,0.00041095,30]
[392230434,1761271834012,-1281.44,0.00041095,30]
[392230435,1761271834022,-500.0,0.00041095,30]
[392230436,1761271834032,-511.42864646,0.00041095,30]
[392230437,1761271834042,-1149.85,0.00041095,30]
[392230438,1761271834051,-500.0,0.00041095,30]
[392230439,1761271834061,-500.0,0.00041095,30]
[392230440,1761271834070,-721.29,0.00041095,30]
[392230441,1761271834080,-521.8240178,0.00041095,30]
[392230442,1761271834089,-500.0,0.00041095,30]
[392230443,1761271834098,-500.0,0.00041095,30]
[392230444,1761271834107,-500.0,0.00041095,30]
[392230445,1761271834116,-500.0,0.00041095,30]
[392230446,1761271834125,-949.68,0.00041095,30]
[392230447,1761271834134,-500.0,0.00041095,30]
[392230448,1761271834144,-1095.76,0.00041095,30]
[392230449,1761271834153,-752.06,0.00041095,30]
[392230450,1761271834162,-500.0,0.00041095,30]
[392230451,1761271834174,-1008.3,0.00041095,30]
[392230452,1761271834184,-896.07,0.00041095,30]
[392230453,1761271834194,-500.0,0.00041095,30]
[392230454,1761271834204,-500.0,0.00041095,30]
[392230455,1761271834214,-526.38,0.00041095,30]
[392230456,1761271834225,-500.0,0.00041095,30]
[392230457,1761271834234,-500.0,0.00041095,30]
[392230458,1761271834243,-500.0,0.00041095,30]
[392230459,1761271834252,-500.0,0.00041095,30]
[392230460,1761271834262,-500.0,0.00041095,30]
[392230461,1761271834271,-500.0,0.00041095,30]
[392230462,1761271834279,-500.0,0.00041095,30]
[392230463,1761271834288,-500.0,0.00041095,30]
[392230464,1761271834298,-506.23786826,0.00041095,30]
[392230465,1761271834307,-643.72,0.00041095,30]
[392230466,1761271834316,-512.86324311,0.00041095,30]
[392230467,1761271834326,-517.42628204,0.00041095,30]
[392230468,1761271834335,-500.0,0.00041095,30]
[392230469,1761271834344,-500.0,0.00041095,30]
[392230470,1761271834353,-1180.71,0.00041095,30]
[392230471,1761271834362,-500.0,0.00041095,30]
[392230472,1761271834371,-500.0,0.00041095,30]
[392230473,1761271834381,-500.0,0.00041095,30]
[392230474,1761271834390,-1096.38,0.00041095,30]
[392230475,1761271834400,-500.0,0.00041095,30]
[392230476,1761271834410,-500.0,0.00041095,30]
[392230477,1761271834419,-500.0,0.00041095,30]
[392230478,1761271834429,-715.37,0.00041095,30]
[392230479,1761271834439,-500.0,0.00041095,30]
[392230480,1761271834449,-855.05,0.00041095,30]
[392230481,1761271834458,-500.0,0.00041095,30]
[392230482,1761271834468,-1905.27,0.00041095,30]
[392230483,1761271834479,-500.0,0.00041095,30]
[392230484,1761271834488,-505.85507159,0.00041095,30]
[392230485,1761271834497,-500.0,0.00041095,30]
[392230486,1761271834506,-514.64,0.00041095,30]
[392230487,1761271834516,-500.0,0.00041095,30]
[392230488,1761271834526,-1125.38,0.00041095,30]
[392230489,1761271834538,-500.0,0.00041095,30]
[392230490,1761271834554,-500.0,0.00041095,30]
[392230491,1761271834566,-523.17521261,0.00041095,30]
[392230492,1761271834576,-500.0,0.00041095,30]
[392230493,1761271834585,-500.0,0.00041095,30]
[392230494,1761271834595,-931.76,0.00041095,30]
[392230495,1761271834605,-542.54,0.00041095,30]
[392230496,1761271834615,-500.0,0.00041095,30]
[392230497,1761271834913,-937.86,0.00041095,30]
[392230498,1761271834923,-1385.84,0.00041095,30]
[392230499,1761271834933,-939.34,0.00041095,30]
[392230500,1761271834943,-500.0,0.00041095,30]
[392230501,1761271834952,-500.0,0.00041095,30]
[392230502,1761271834962,-500.0,0.00041095,30]
[392230503,1761271834971,-1058.11,0.00041095,30]
[392230504,1761271834981,-500.0,0.00041095,30]
[392230505,1761271834991,-186.14649164,0.00041095,30]
[392230506,1761271835000,-925.75,0.00041095,30]
[392230507,1761271835011,-500.0,0.00041095,30]
[392230508,1761271835021,-506.68206838,0.00041095,30]
[392230509,1761271835030,-500.0,0.00041095,30]
[392230510,1761271835040,-500.0,0.00041095,30]
[392230511,1761271835049,-500.0,0.00041095,30]
[392230512,1761271835059,-858.12,0.00041095,30]
[392230513,1761271835068,-500.0,0.00041095,30]
[392230514,1761271835077,-501.43,0.00041095,30]
[392230515,1761271835086,-500.0,0.00041095,30]
[392230516,1761271835095,-593.15,0.00041095,30]
[392230517,1761271835104,-749.63,0.00041095,30]
[392230518,1761271835113,-501.74564119,0.00041095,30]
[392230519,1761271835123,-500.0,0.00041095,30]
[392230520,1761271835132,-500.0,0.00041095,30]
[392230521,1761271835141,-699.35,0.00041095,30]
[392230522,1761271835150,-500.0,0.00041095,30]
[392230523,1761271835159,-500.0,0.00041095,30]
[392230524,1761271835169,-687.22,0.00041095,30]
[392230525,1761271835179,-500.0,0.00041095,30]
[392230526,1761271835189,-1346.88,0.00041095,30]
[392230527,1761271835198,-926.82,0.00041095,30]
[392230528,1761271835207,-614.81,0.00041095,30]
[392230529,1761271835216,-500.0,0.00041095,30]
[392230530,1761271835225,-500.0,0.00041095,30]
[392230531,1761271835235,-500.0,0.00041095,30]
[392230532,1761271835244,-632.5,0.00041095,30]
[392230533,1761271835254,-500.0,0.00041095,30]
[392230534,1761271835263,-500.0,0.00041095,30]
[392230535,1761271835272,-282.66,0.00041095,30]
[392230536,1761271835281,-500.0,0.00041095,30]
[392230537,1761271835291,-868.42,0.00041095,30]
[392230538,1761271835300,-500.0,0.00041095,30]
[392230539,1761271835309,-987.29,0.00041095,30]
[392230540,1761271835319,-500.0,0.00041095,30]
[392230541,1761271835329,-500.0,0.00041095,30]
[392230542,1761271835339,-500.0,0.00041095,30]
[392230543,1761271835348,-500.0,0.00041095,30]
[392230544,1761271835357,-973.02,0.00041095,30]
[392230545,1761271835366,-1130.39,0.00041095,30]
[392230546,1761271835376,-500.0,0.00041095,30]
[392230547,1761271835385,-630.06,0.00041095,30]
[392230548,1761271835399,-500.0,0.00041095,30]
[392230549,1761271835408,-500.0,0.00041095,30]
[392230550,1761271835418,-500.0,0.00041095,30]
[392230551,1761271835427,-500.0,0.00041095,30]
[392230552,1761271835437,-500.0,0.00041095,30]
[392230553,1761271835447,-500.0,0.00041095,30]
[392230554,1761271835456,-546.92,0.00041095,30]
[392230555,1761271835466,-1145.04,0.00041095,30]
[392230556,1761271835475,-500.0,0.00041095,30]
[392230557,1761271835485,-500.0,0.00041095,30]
[392230558,1761271835495,-500.0,0.00041095,30]
[392230559,1761271835505,-498.92368704,0.00041095,30]
[392230560,1761271835515,-500.0,0.00041095,30]
[392230561,1761271835524,-500.0,0.00041095,30]
[392230562,1761271835534,-500.0,0.00041095,30]
[392230563,1761271835544,-512.3,0.00041095,30]
[392230564,1761271835554,-503.654087,0.00041095,30]
[392230565,1761271835563,-431.85185907,0.00041095,30]
[392230566,1761271835573,-500.0,0.00041095,30]
[392230567,1761271835582,-500.0,0.00041095,30]
[392230568,1761271835591,-500.0,0.00041095,30]
[392230569,1761271835601,-500.0,0.00041095,30]
[392230570,1761271835610,-926.49,0.00041095,30]
[392230571,1761271835620,-655.27,0.00041095,30]
[392230572,1761271835629,-1354.98,0.00041095,30]
[392230573,1761271835641,-500.0,0.00041095,30]
[392230574,1761271835653,-500.0,0.00041095,30]
[392230575,1761271835663,-500.0,0.00041095,30]
[392230576,1761271835672,-500.0,0.00041095,30]
[392230577,1761271835682,-200.0,0.00041096,20]
[392230578,1761271835692,-517.28469278,0.00041222,30]
[392230579,1761271835703,-500.0,0.00041277,30]
[392230580,1761271835712,-516.66243306,0.00041352,30]
[392230581,1761271835722,-500.0,0.00041368,30]
[392230582,1761271835732,-500.0,0.00041368,30]
[392230583,1761271835742,-500.0,0.00041368,30]
[392230584,1761271835752,-828.93,0.00041368,30]
[392230585,1761271835761,-500.0,0.00041368,30]
[392230586,1761271835775,-500.0,0.00041368,2]
[392230587,1761271835785,-500.0,0.00041368,30]
[392230588,1761271835796,-500.0,0.00041368,30]
[392230589,1761271835806,-500.0,0.00041368,2]
[392230590,1761271835816,-1210.29,0.00041368,30]
[392230591,1761271835826,-500.0,0.00041368,30]
[392230592,1761271835837,-514.84,0.00041369,30]
[392230593,1761271835847,-228.81883315,0.00041369,30]
[392230594,1761271835858,-549.08,0.00041369,30]
[392230595,1761271835869,-500.0,0.00041369,30]
[392230596,1761271835879,-500.0,0.00041369,30]
[392230597,1761271835889,-500.0,0.00041369,30]
[392230598,1761271835899,-618.1,0.00041369,30]
[392230599,1761271835909,-1072.81,0.00041369,30]
[392230600,1761271835919,-528.30707748,0.00041369,30]
[392230601,1761271835928,-500.0,0.00041369,30]
[392230602,1761271835938,-500.0,0.00041369,30]
[392230603,1761271835949,-500.0,0.00041369,30]
[392230604,1761271835959,-300.0,0.00041369,30]
[392230605,1761271835969,-1099.63,0.00041369,30]
[392230606,1761271835979,-561.56,0.00041369,30]
[392230607,1761271835991,-500.0,0.00041369,30]
[392230608,1761271836001,-500.0,0.00041369,30]
[392230609,1761271836011,-500.0,0.00041369,30]
[392230610,1761271836021,-500.0,0.00041369,30]
[392230611,1761271836032,-174.26104346,0.00041369,30]
[392230612,1761271836044,-500.0,0.00041369,30]
[392230613,1761271836055,-653.3,0.00041369,30]
[392230614,1761271836066,-500.0,0.00041369,30]
[392230615,1761271836076,-500.0,0.00041369,30]
[392230616,1761271836085,-500.0,0.00041369,30]
[392230617,1761271836096,-500.0,0.00041369,30]
[392230618,1761271836106,-622.84,0.00041369,30]
[392230619,1761271836116,-500.0,0.00041369,30]
[392230620,1761271836126,-500.0,0.00041369,30]
[392230621,1761271836137,-500.0,0.00041369,30]
[392230622,1761271836150,-500.0,0.00041369,30]
[392230623,1761271836160,-500.0,0.00041369,30]
[392230624,1761271836171,-1019.47,0.00041369,30]
[392230625,1761271836181,-500.0,0.00041369,30]
[392230626,1761271836192,-500.0,0.00041369,30]
[392230627,1761271836202,-500.0,0.00041369,30]
[392230628,1761271836212,-500.0,0.00041369,30]
[392230629,1761271836221,-1154.68,0.00041369,30]
[392230630,1761271836231,-1155.43,0.00041369,30]
[392230631,1761271836242,-500.0,0.00041369,30]
[392230632,1761271836252,-500.0,0.00041369,30]
[392230633,1761271836262,-742.27,0.00041369,30]
[392230634,1761271836272,-881.73,0.00041369,30]
[392230635,1761271836285,-500.0,0.00041369,30]
[392230636,1761271836295,-500.0,0.00041369,30]
[392230637,1761271836304,-500.0,0.00041369,30]
[392230638,1761271836316,-560.93,0.00041369,30]
[392230639,1761271836328,-500.0,0.00041369,30]
[392230640,1761271836339,-588.28,0.00041369,30]
[392230641,1761271836350,-500.0,0.00041369,30]
[392230642,1761271836361,-500.0,0.00041369,30]
[392230643,1761271836372,-500.0,0.00041369,30]
[392230644,1761271836382,-500.0,0.00041369,30]
[392230645,1761271836391,-500.0,0.00041369,30]
[392230646,1761271836403,-500.0,0.00041369,30]
[392230647,1761271836414,-500.0,0.00041369,30]
[392230648,1761271836424,-500.0,0.00041369,30]
[392230649,1761271836435,-505.97934412,0.00041369,30]
[392230650,1761271836445,-500.0,0.00041369,30]
[392230651,1761271836456,-500.0,0.00041369,30]
[392230652,1761271836467,-500.0,0.00041369,30]
[392230653,1761271836478,-500.0,0.00041369,30]
[392230654,1761271836488,-1170.11,0.00041369,30]
[392230655,1761271836499,-500.0,0.00041369,30]
[392230656,1761271836508,-500.0,0.00041369,30]
[392230657,1761271836518,-521.50974118,0.00041369,30]
[392230658,1761271836531,-500.0,0.00041369,30]
[392230659,1761271836541,-500.0,0.00041369,30]
[392230660,1761271836551,-500.0,0.00041369,30]
[392230661,1761271836561,-500.0,0.00041369,30]
[392230662,1761271836571,-500.0,0.00041369,30]
[392230663,1761271836582,-500.0,0.00041369,30]
[392230664,1761271836593,-500.0,0.00041369,30]
[392230665,1761271836602,-500.0,0.00041369,30]
[392230666,1761271836612,-500.0,0.00041369,30]
[392230667,1761271836621,-329.45495133,0.00041369,30]
[392230668,1761271836631,-1281.44,0.00041369,30]
[392230669,1761271836640,-500.0,0.00041369,30]
[392230670,1761271836650,-1149.85,0.00041369,30]
[392230671,1761271836659,-500.0,0.00041369,30]
[392230672,1761271836668,-500.0,0.00041369,30]
[392230673,1761271836678,-721.29,0.00041369,30]
[392230674,1761271836688,-503.0551315,0.00041369,30]
[392230675,1761271836702,-500.0,0.00041369,30]
[392230676,1761271836712,-500.0,0.00041369,30]
[392230677,1761271836721,-500.0,0.00041369,30]
[392230678,1761271836731,-949.68,0.00041369,30]
[392230679,1761271836740,-500.0,0.00041369,30]
[392230680,1761271836749,-1095.76,0.00041369,30]
[392230681,1761271836758,-752.06,0.00041369,30]
[392230682,1761271836768,-500.0,0.00041369,30]
[392230683,1761271836778,-1008.3,0.00041369,30]
[392230684,1761271836787,-896.07,0.00041369,30]
[392230685,1761271836797,-404.08101161,0.00041369,30]
[392230686,1761271836807,-501.44993681,0.00041369,30]
[392230687,1761271836818,-526.38,0.00041369,30]
[392230688,1761271836829,-500.0,0.00041369,30]
[392230689,1761271836838,-500.0,0.00041369,30]
[392230690,1761271836849,-500.0,0.00041369,30]
[392230691,1761271836859,-500.0,0.00041369,30]
[392230692,1761271836870,-500.0,0.00041369,30]